Cogmind - Beta 14 @@@ ROGUE MODE // 2024.09.19 @ 15:49:49 Player: Dull Result: Destroyed by Y-64 Sentinel with Wave Gun Performance ------------- Evolutions (5) 2500 Regions Visited (6) 1200 Robots Destroyed (69) 345 Value Destroyed (1889) 1889 Prototype IDs (16) 320 Alien Tech Used (0) 0 Bonus (719) 719 TOTAL SCORE: 6973 Bonus ------- High Alert Combat Kills 16 Follower Combat Kills 403 Registered with UFD 300 Cogmind --------- Core Integrity 0/1000 Matter 300/300 Energy 65/100 System Corruption 0% Temperature Cool (9) Movement Core (1350) Ox26 Location -5/Extension Parts ------- > --- POWER (2) -------- (None) > --- PROPULSION (4) --- (None) > --- UTILITY (9) ------ Improved Coolant Injector Huge Storage Unit Advanced Signal Interpreter > --- WEAPON (2) ------- (None) > --- INVENTORY (25) --- Neutrino Core Neutrino Core Neutrino Core Neutrino Core Scrap Suit Large Storage Unit High-capacity Matter Pod (200) Improved Sensor Array Gun Armor A0-MCA's Component Scanner Improved System Restoration Module Improved System Restoration Module Long-range Tractor Beam KE Penetrator KE Penetrator KE Penetrator KE Penetrator Overtuned Coil Gun Mass Driver Hypervelocity Gauss Cannon Heavy Rocket Launcher Phasing Sabre Lance DRS Beacon (Ready) Peak State ------------ > --- POWER ------------ Neutrino Core Neutrino Core > --- PROPULSION ------- Compact Wheel Compact Wheel Armored Huge Wheel > --- UTILITY ---------- Improved Heat Sink Improved Coolant Injector Huge Storage Unit Improved Sensor Array Advanced Signal Interpreter Advanced Shield Generator Remote Force Field System Shield Improved System Restoration Module > --- WEAPON ----------- Companion Sword Phasing Sabre > --- INVENTORY -------- Neutrino Core Neutrino Core Neutrino Core Neutrino Core Scrap Suit Large Storage Unit High-capacity Matter Pod Gun Armor A0-MCA's Component Scanner Long-range Tractor Beam KE Penetrator KE Penetrator KE Penetrator KE Penetrator Heavy Flak Cannon Mass Driver Hypervelocity Gauss Cannon Heavy Rocket Launcher Dirty Datajack Junk Cannon Lance DRS Beacon [Rating: 85] Favorites ----------- Power Ion Engine Engine Ion Engine Power Core Neutrino Core Propulsion Light Treads Treads Light Treads Leg Aluminum Leg Wheel Armored Huge Wheel Utility Humpback Device V3-11A's Pendant Storage Humpback Processor Advanced Signal Interpreter Hackware System Shield Protection Light Armor Plating Weapon Barrage Gun Ballistic Gun Barrage Gun Ballistic Cannon Light Cannon Launcher Grenade Launcher Special Weapon Junk Cannon Slashing Weapon Ripper Special Melee Weapon Dirty Datajack Build | -11 -10 -10 -7 -7 -5 -5 ------- Run | Yrd Mat Sub Rec Scr Fac Ext Slots Evolved 10 | . . . . . 10 . Power 1 | . . . . . 1 . Propulsion 2 | . . . . . 2 . Utility 7 | . . . . . 7 . Weapon . | . . . . . . . Parts Attached 76 | 3 9 20 2 9 20 13 Power 9 | . . 1 . 1 6 1 Engine 2 | . . 1 . . 1 . Core 7 | . . . . 1 5 1 Reactor . | . . . . . . . Propulsion 15 | 2 1 3 1 1 5 2 Treads 8 | 2 1 3 1 . 1 . Leg . | . . . . . . . Wheel 7 | . . . . 1 4 2 Hover . | . . . . . . . Flight . | . . . . . . . Utility 31 | 1 3 9 . 4 9 5 Device 14 | 1 1 3 . . 6 3 Storage 3 | . 1 1 . 1 . . Processor 1 | . . . . . . 1 Hackware 3 | . . . . 1 2 . Protection 10 | . 1 5 . 2 1 1 Artifact . | . . . . . . . Weapon 21 | . 5 7 1 3 . 5 Energy Gun . | . . . . . . . Energy Cannon . | . . . . . . . Ballistic Gun 1 | . . 1 . . . . Ballistic Cannon 8 | . 3 4 1 . . . Launcher 3 | . 2 1 . . . . Special Weapon 3 | . . . . 1 . 2 Impact Weapon . | . . . . . . . Slashing Weapon 5 | . . 1 . 2 . 2 Piercing Weapon . | . . . . . . . Special Melee Weapon 1 | . . . . . . 1 Unidentified Prototypes 3 | . . 1 . 2 . . Parts Lost 19 | . 1 . . . 6 12 Power 4 | . . . . . 2 2 Propulsion 6 | . . . . . 2 4 Utility 8 | . 1 . . . 2 5 Weapon 1 | . . . . . . 1 Highest Loss Streak 11 | . 1 . . . 2 11 To Critical Strikes . | . . . . . . . Average Slot Usage (%) 79 | . 99 92 85 45 70 87 Engine 11 | . 14 14 14 9 . . Core 1 | . . . . 4 8 10 Treads 18 | . 27 28 28 . . . Wheel 4 | . . . . 13 13 16 Device 4 | . 5 5 . . 17 28 Storage 10 | . 14 7 14 14 5 5 Protection 4 | . 8 8 . . 1 4 Ballistic Gun 8 | . 9 12 14 . . . Ballistic Cannon 7 | . 18 8 7 . . . Slashing Weapon 4 | . . 6 7 2 11 5 Peak Build Rating 85 | 9 11 17 20 36 81 85 Average Rating 21 | 6 9 13 18 22 70 81 On Entrance 25 | 6 9 10 16 20 36 79 Naked Turns . | . . . . . . . Heaviest Build 211 | 13 94 211 211 209 133 145 Greatest Support 60 | 40 40 40 40 40 60 60 Greatest Overweight (x) 68 | . 2 5 5 68 4 27 Average Overweight (x) 3 | . 1 1 5 6 1 2 Largest Inventory Capacity 35 | 8 25 35 35 35 25 25 Average Capacity 27 | 8 24 20 35 34 25 25 Most Carried 35 | 6 23 26 35 35 25 25 Average Carried 20 | 3 16 9 29 34 23 24 Final Capacity 35 | 8 25 35 35 25 25 25 Final Carried 35 | 3 23 22 35 25 25 25 Class Distribution -------------------- 56% | Hauler-Mutant 35% | Mutant 6% | Scavenger-Mutant Dominant Class ---------------- Mutant | -10/Materials Mutant | -10/Subcaves Hauler-Mutant | -7/Recycling Hauler-Mutant | -7/Scraptown Scavenger-Mutant | -5/Factory Scavenger-Mutant | -5/Extension Resources | -11 -10 -10 -7 -7 -5 -5 ----------- Run | Yrd Mat Sub Rec Scr Fac Ext Matter Collected 3186 | 206 593 638 377 177 1054 141 Remotely . | . . . . . . . Salvage Created 3079 | 35 873 97 633 . 914 527 Parts 158 | 5 72 6 19 . 44 12 Haulers Intercepted 2 | . 2 . . . . . Recyclers Shooed 7 | . . . 5 . 2 . Parts Field Recycled . | . . . . . . . Retrieved Matter . | . . . . . . . Parts Self-Destructed 19 | . . 19 . . . . Prevented . | . . . . . . . Kills | -11 -10 -10 -7 -7 -5 -5 ------- Run | Yrd Mat Sub Rec Scr Fac Ext Combat Hostiles Destroyed 42 | . 19 5 2 . 11 5 Melee 14 | . . . . . 11 3 Guns 15 | . 12 3 . . . . Cannons 12 | . 7 1 2 . . 2 AOE 1 | . . 1 . . . . Classes Destroyed 12 | 1 6 3 . . 2 . Tunneler 4 | 2 1 . . . 1 . Hauler 2 | . 2 . . . . . Recycler 13 | . 3 . 6 . 3 1 Operator 3 | . 2 . . . . 1 Turret 2 | . . 2 . . . . Watcher 3 | . 3 . . . . . Swarmer 16 | . 9 3 . . 4 . Grunt 12 | . 10 . . . . 2 Sentry 5 | . . 1 2 . 1 1 Hunter 2 | . . . . . 1 1 Programmer 5 | . . . . . 5 . Subdweller 1 | . . 1 . . . . Thug 1 | . . . . . . 1 Best Kill Streak 7 | 2 5 4 7 . 6 2 Combat Bots Only 4 | . 4 2 2 . 4 2 Max Kills in Single Turn 2 | 1 2 1 1 . 2 1 Gunslinging . | . . . . . . . Exploded 1 | . . 1 . . . . Melee 2 | . . . . . 2 1 Uniques/NPCs Destroyed . | . . . . . . . Combat | -11 -10 -10 -7 -7 -5 -5 -------- Run | Yrd Mat Sub Rec Scr Fac Ext Hostile Shots Fired 409 | . 81 74 48 . 87 119 Missed 138 | . 28 34 28 . 19 29 Damage Taken 4663 | . 548 479 187 . 1401 2048 Core 1154 | . 83 32 15 . 270 754 Absorbed by Shields 201 | . . . . . . 201 Ignored by Resistances 100 | . . . . . 100 . Regen/Repaired (Parts) 86 | . 48 . . . 38 . Core Remaining (%) 74 | 100 . . . 48 . . Volleys Fired 140 | 8 68 37 15 . . 12 Largest 2 | 2 2 2 2 . . 1 Hottest 74 | 40 70 74 67 . . . Shots Fired 241 | 16 134 49 30 . . 12 Gun 129 | 16 86 12 15 . . . Cannon 94 | . 46 33 15 . . . Launcher 6 | . 2 4 . . . . Special 12 | . . . . . . 12 Kinetic 223 | 16 132 45 30 . . . Thermal . | . . . . . . . Explosive 6 | . 2 4 . . . . Electromagnetic . | . . . . . . . Impact 12 | . . . . . . 12 Robot Hit Streak 9 | 3 9 8 4 . . 4 Robot Miss Streak 4 | 2 4 2 2 . . 3 Penetration Max . | . . . . . . . Secondary Targets . | . . . . . . . Shots Hit Robots 177 | 8 78 16 19 . 41 15 Core Hits 92 | 3 47 9 11 . 16 6 Critical Kills 2 | . 1 . . . . 1 Critical Parts Destroyed 1 | . . . . . . 1 Critical Strikes 7 | . 3 1 . . 1 2 Destroy 1 | . 1 . . . . . Blast 3 | . 2 1 . . . . Smash 2 | . . . . . . 2 Sever 1 | . . . . . 1 . Melee Attacks 91 | . . 12 2 . 64 13 Impact . | . . . . . . . Slashing 91 | . . 12 2 . 64 13 Piercing . | . . . . . . . Sneak Attacks 12 | . . . 2 . 8 2 Combat Hostiles . | . . . . . . . Follow-up Attacks 5 | . . . . . 4 1 Damage Inflicted 4720 | 61 917 392 518 . 1852 980 Guns 812 | 61 482 132 137 . . . Cannons 875 | . 435 201 239 . . . Explosions 59 | . . 59 . . . . Melee 2387 | . . . 142 . 1852 393 Ramming . | . . . . . . . Kinetic 1687 | 61 917 333 376 . . . Thermal . | . . . . . . . Explosive 59 | . . 59 . . . . Electromagnetic . | . . . . . . . Impact 587 | . . . . . . 587 Slashing 2387 | . . . 142 . 1852 393 Piercing . | . . . . . . . Highest Corruption 2 | . . . 1 1 2 2 Average Corruption 1 | . . . 1 1 1 1 Corruption Purged 2 | . . . . . . 2 Corruption Blocked . | . . . . . . . Effects 67 | . . . 8 40 12 7 Message Errors 14 | . . . . 10 2 2 Matter Fused 18 | . . . 3 12 1 2 Heat Flow Errors 12 | . . . 1 9 2 . Energy Discharges 8 | . . . 2 4 1 1 Parts Fused 1 | . . . . . . 1 Data Loss (minor) 9 | . . . 1 3 4 1 Data Loss (major) 2 | . . . . 1 1 . Alerts 3 | . . . 1 1 1 . Overload Shots . | . . . . . . . Overflow Damage 588 | . . 9 51 . 253 275 Projectiles 198 | . . 9 . . . 189 Explosions . | . . . . . . . Melee 390 | . . . 51 . 253 86 Knockbacks 3 | . 1 2 . . . . Impact . | . . . . . . . Kinetic 3 | . 1 2 . . . . Secondary . | . . . . . . . Self-Inflicted Damage 30 | . 30 . . . . . Shots 1 | . 1 . . . . . Rammed . | . . . . . . . Targets Rammed . | . . . . . . . Kicked . | . . . . . . . Crushed . | . . . . . . . Highest Temperature 278 | . 108 26 178 278 147 . Average Temperature 58 | . 33 9 68 91 78 . Received Heat Transfer 825 | . 165 210 72 . 18 360 Siege Activations . | . . . . . . . Robots Corrupted . | . . . . . . . Combat Hostiles . | . . . . . . . Parts Fried 1 | . . . . . . 1 Impact Corruptions 5 | . . . . . . 5 Robots Melted . | . . . . . . . Combat Hostiles . | . . . . . . . Parts Melted . | . . . . . . . Heat Transferred . | . . . . . . . Parts Sabotaged . | . . . . . . . Parts Stolen . | . . . . . . . Parts Stripped . | . . . . . . . Power Chain Reactions . | . . . . . . . Alert | -11 -10 -10 -7 -7 -5 -5 ------- Run | Yrd Mat Sub Rec Scr Fac Ext Peak Influence 408 | 10 219 . 69 . 312 408 Initial 107 | . 6 . . . . 107 Average 59 | 3 60 . 7 . 90 240 Maximum Alert Level 2 | . 1 . . . 1 2 Low Security (%) 91 | 100 98 . 100 . 79 36 Level 1 8 | . 1 . . . 20 57 Level 2 . | . . . . . . 6 Level 3 . | . . . . . . . Level 4 . | . . . . . . . Level 5 . | . . . . . . . High Security . | . . . . . . . Max Security . | . . . . . . . Squads Dispatched 9 | . 2 . . . 5 2 Investigation 3 | . 1 . . . 2 . Extermination 3 | . . . . . 3 . Reinforcement 3 | . 1 . . . . 2 Assault . | . . . . . . . Garrison . | . . . . . . . Intercept . | . . . . . . . Searches Triggered . | . . . . . . . Construction Impeded 1 | . . . . . . 1 Haulers Reinforced . | . . . . . . . Active Scanning Responses . | . . . . . . . Cargo Convoy Interrupts . | . . . . . . . Stealth | -11 -10 -10 -7 -7 -5 -5 --------- Run | Yrd Mat Sub Rec Scr Fac Ext Distress Signals 6 | . 3 . . . 2 1 Communications Jammed . | . . . . . . . Distress Signals . | . . . . . . . Times Spotted 87 | . 30 13 3 . 25 16 Peak Tracking Total 6 | . 5 3 2 . 6 5 Tactical Retreats 2 | . 1 . . . 1 . Traps | -11 -10 -10 -7 -7 -5 -5 ------- Run | Yrd Mat Sub Rec Scr Fac Ext Traps Triggered 4 | . . 2 . . 1 1 Indirectly . | . . . . . . . Trap Hack Attempts . | . . . . . . . Triggered . | . . . . . . . Disarmed . | . . . . . . . Reprogrammed 6 | . 6 . . . . . Reused 1 | . 1 . . . . . Traps Extracted . | . . . . . . . Installed . | . . . . . . . Triggered 1 | . 1 . . . . . Machines | -11 -10 -10 -7 -7 -5 -5 ---------- Run | Yrd Mat Sub Rec Scr Fac Ext Machines Disabled 8 | . 4 2 . . . 2 Max in Single Turn 2 | . 2 1 . . . . Garrison Access 1 | . . . . . 1 . Machines Repaired . | . . . . . . . Machines Dismantled . | . . . . . . . Machines Sabotaged . | . . . . . . . Overloaded Fab Kills . | . . . . . . . Hacking | -11 -10 -10 -7 -7 -5 -5 --------- Run | Yrd Mat Sub Rec Scr Fac Ext Machines Accessed 36 | . 8 1 6 12 6 3 Terminals 17 | . 5 . 5 . 4 3 Fabricators 1 | . . . . . 1 . Repair Stations 1 | . 1 . . . . . Recycling Units 3 | . 2 . 1 . . . Scanalyzers . | . . . . . . . Garrison Access 1 | . . . . . 1 . Total Hacks 143 | . 19 4 21 69 21 9 Successful 106 | . 13 4 10 69 6 4 Failed 37 | . 6 . 11 . 15 5 Catastrophic 9 | . 1 . 3 . 4 1 Database Lockouts . | . . . . . . . Manual 36 | . 15 . 11 . 7 3 Terminals 56 | . 13 . 19 . 15 9 Fabricators 2 | . . . . . 2 . Repair Stations 2 | . 2 . . . . . Recycling Units 6 | . 4 . 2 . . . Scanalyzers . | . . . . . . . Garrison Access 4 | . . . . . 4 . Terminal Hacks 89 | . 4 4 6 69 2 4 Record 73 | . . 4 . 67 1 1 Part Schematic 3 | . . . 3 . . . Robot Analysis 3 | . 2 . 1 . . . Prototype ID Bank 2 | . . . 1 . . 1 Open Door 2 | . . . . 1 . 1 Branch Access Points 2 | . 1 . 1 . . . Alert Level 2 | . . . . . 1 1 Reprogram Traps 1 | . 1 . . . . . Derelict Proto ID Bank 1 | . . . . 1 . . Fabricator Hacks 2 | . . . . . 2 . Load Schematic 1 | . . . . . 1 . Build 1 | . . . . . 1 . Repair Station Hacks 2 | . 2 . . . . . Scan Component 1 | . 1 . . . . . Repair 1 | . 1 . . . . . Recycling Unit Hacks . | . . . . . . . Scanalyzer . | . . . . . . . Garrison Access Hacks 1 | . . . . . 1 . Seal Access 1 | . . . . . 1 . Unauthorized Hacks 12 | . 7 . 4 . 1 . Terminals 7 | . 3 . 3 . 1 . Botnet 7 | . 3 . 3 . 1 . Fabricators . | . . . . . . . Repair Stations . | . . . . . . . Recycling Units 5 | . 4 . 1 . . . Monitor 1 | . 1 . . . . . Reject 2 | . 2 . . . . . Mask 2 | . 1 . 1 . . . Scanalyzers . | . . . . . . . Garrison Access . | . . . . . . . Data Cores Recovered 1 | . 1 . . . . . Used 1 | . 1 . . . . . Hacking Detections 21 | . 6 . 6 . 6 3 Full Trace Events 8 | . 1 . 5 . 2 . Feedback Events 1 | . . . 1 . . . Corruption 1 | . . . 1 . . . Feedback Blocked . | . . . . . . . Robot Schematics Acquired . | . . . . . . . Robots Built . | . . . . . . . Authchips . | . . . . . . . Time . | . . . . . . . Total Robot Build Rating . | . . . . . . . Part Schematics Acquired 3 | . . . 3 . . . Parts Built 2 | . . . . . 2 . Authchips . | . . . . . . . Time 95 | . . . . . 95 . Total Part Build Rating 10 | . . . . . 10 . Parts Repaired 1 | . 1 . . . . . Time 26 | . 26 . . . . . Parts Recycled . | . . . . . . . Recycled Matter . | . . . . . . . Retrieved Matter . | . . . . . . . Retrieved Components . | . . . . . . . Parts Scanalyzed . | . . . . . . . Part Schematics Acquired . | . . . . . . . Parts Damaged . | . . . . . . . Bothacking | -11 -10 -10 -7 -7 -5 -5 ------------ Run | Yrd Mat Sub Rec Scr Fac Ext Used RIF Installer . | . . . . . . . Robots Hacked . | . . . . . . . Non-combat . | . . . . . . . Combat . | . . . . . . . Robot Hacks Applied . | . . . . . . . Relay Couplers Released . | . . . . . . . Fabnet Peak Effective % . | . . . . . . . Robots Rewired 5 | . . . . . . 5 Allies Hacked 2 | . . . . . 2 . Hacks Repelled . | . . . . . . . Allies | -11 -10 -10 -7 -7 -5 -5 -------- Run | Yrd Mat Sub Rec Scr Fac Ext Total Allies 21 | . . 10 . . 5 6 Largest Group 7 | . . 5 5 . 5 7 Highest-Rated Group 267 | . . 96 96 . 235 267 Highest-Rated Ally 47 | . . 20 20 . 47 47 Total Orders . | . . . . . . . Ally Attacks 158 | . . 9 21 . 19 109 Total Damage 3388 | . . 131 399 . 399 2459 Kills 14 | . . . 1 . 3 10 Allies Corrupted . | . . . . . . . Allies Melted . | . . . . . . . Intel | -11 -10 -10 -7 -7 -5 -5 ------- Run | Yrd Mat Sub Rec Scr Fac Ext Robot Analysis Total 3 | . 2 . 1 . . . Derelict Logs Recovered 5 | . . 1 . 4 . . Drone Launches . | . . . . . . . Drone Recoveries . | . . . . . . . Exploration | -11 -10 -10 -7 -7 -5 -5 ------------- Run | Yrd Mat Sub Rec Scr Fac Ext Turns Passed 23900 | 113 3613 8236 3825 5935 1306 872 Spaces Moved 8606 | 47 1044 2911 613 2788 725 478 Core 5 | . . . . 4 . 1 Treads 4642 | 44 1044 2911 613 30 . . Legs 3 | 3 . . . . . . Wheels 3956 | . . . . 2754 725 477 Hover . | . . . . . . . Flight . | . . . . . . . Fastest Speed 100 | 120 160 160 610 100 115 123 Average Speed 256 | 157 315 261 610 210 121 133 Slowest Speed 3450 | 160 320 610 610 3450 160 1400 Overloaded Moves . | . . . . . . . Propulsion Burnouts . | . . . . . . . Robots Hopped . | . . . . . . . Cave-ins Triggered . | . . . . . . . Exploration Rate (%) 64 | 4 99 98 99 96 15 43 Regions Visited 6 Branch Regions 4 Pre-discovered Areas 2 | . . 2 . . . . Known Exits Taken 2 | . . 1 . . 1 . Unknown Exits Taken 4 | 1 1 . 1 1 . . Scrap Searched 10 | . . 5 . 5 . . Spaces Dug 23 | . 4 9 . . 10 . Terrain Destroyed 76 | . 39 20 4 . 10 3 Melee 11 | . . 1 . . 10 . Projectile 8 | . . 1 4 . . 3 AOE 57 | . 39 18 . . . . Terrain Rammed . | . . . . . . . Walls Destroyed . | . . . . . . . Machines Disabled . | . . . . . . . Actions | -11 -10 -10 -7 -7 -5 -5 --------- Run | Yrd Mat Sub Rec Scr Fac Ext Total 10087 | 73 1243 3482 674 2856 1066 693 Wait 932 | 13 96 452 20 . 232 119 Move 8600 | 46 1043 2910 612 2787 724 478 Hop . | . . . . . . . Pick Up 132 | . 23 27 17 34 19 12 Fast Attach 27 | 1 2 6 . 3 10 5 Attach 16 | . . 1 . 3 7 5 Detach 5 | . . . . 2 . 3 Swap 33 | 2 7 13 2 3 3 3 Drop 91 | 3 4 24 6 24 12 18 Fire 140 | 8 68 37 15 . . 12 Melee 85 | . . 12 2 . 59 12 Ram . | . . . . . . . Kick . | . . . . . . . Crush . | . . . . . . . Escape Stasis 8 | . . . . . . 8 Rewire 18 | . . . . . . 18 Trap . | . . . . . . . Miscellaneous . | . . . . . . . Route ------- -11/Scrapyard -10/Materials (discovered 5 exits: [*Mat x3] / *Min / *Sub) -10/Subcaves (discovered 3 exits: [*Mat x2] / *Rec) -7/Recycling (discovered 2 exits: *Fac / *Scr) -7/Scraptown (discovered 2 exits: *Fac x2) -5/Factory (discovered 3 exits: *Upp x2 / *Ext) -5/Extension History --------- Turn | Location | Event 1 | -11/Scrapyard | Discovered new exit (range 3) 114 | -11/Scrapyard | Entered Materials 308 | -10/Materials | Build established: Mutant 422 | -10/Materials | Discovered new exit (range 9) 439 | -10/Materials | Repaired Lgt. Treads 515 | -10/Materials | Discovered new exit (range 16) 1094 | -10/Materials | Identified exit to Mines 1724 | -10/Materials | Discovered new exit (range 6) 2117 | -10/Materials | Discovered new exit (range 6) 3460 | -10/Materials | Discovered new exit (range 8) 3727 | -10/Materials | Entered Subcaves 4953 | -10/Subcaves | Visited triangular shrine 4962 | -10/Subcaves | Found Prototype Device 4963 | -10/Subcaves | Identified V3-11A's Pendant 4968 | -10/Subcaves | Befriended Subdweller 5076 | -10/Subcaves | Disturbed a concealed Subdweller 5078 | -10/Subcaves | Befriended Subdweller 5497 | -10/Subcaves | Shifting Twisted Machinery released Flamer 5686 | -10/Subcaves | Discovered new exit (range 11) 5900 | -10/Subcaves | Visited Clippyterm 5905 | -10/Subcaves | Identified exit to Recycling 5905 | -10/Subcaves | Learned location of Extension (-5) 5928 | -10/Subcaves | Befriended Subdweller 5953 | -10/Subcaves | Befriended Subdweller 6184 | -10/Subcaves | Lost 3 allies 6303 | -10/Subcaves | Discovered new exit (range 14) 6304 | -10/Subcaves | A swath of the cavern ceiling suddenly collapsed 6329 | -10/Subcaves | Approached by friendly Subdweller 6858 | -10/Subcaves | Shifting Twisted Machinery released Spk. Treads 7003 | -10/Subcaves | Befriended Subdweller 7003 | -10/Subcaves | Befriended Subdweller 7143 | -10/Subcaves | Shifting Twisted Machinery released Flamer 7297 | -10/Subcaves | A Subdweller sparked back to life 7297 | -10/Subcaves | A Subdweller sparked back to life 7297 | -10/Subcaves | A Subdweller sparked back to life 7298 | -10/Subcaves | Befriended Subdweller 7298 | -10/Subcaves | Befriended Subdweller 7298 | -10/Subcaves | Befriended Subdweller 8000 | -10/Subcaves | Shifting Twisted Machinery released Flamer 8028 | -10/Subcaves | Learned location of Zion (-6) 8097 | -10/Subcaves | Shifting Twisted Machinery released Humpback 8397 | -10/Subcaves | Build established: Hauler-Mutant 11963 | -10/Subcaves | Entered Recycling 11963 | -7/Recycling | Accompanied by 5 allies 13765 | -7/Recycling | Discovered new exit (range 16) 13893 | -7/Recycling | Core integrity fell below 50% 13906 | -7/Recycling | Lost 4 allies 13924 | -7/Recycling | Found Prototype Protection 15630 | -7/Recycling | Scanned before Scraplab entrance 15721 | -7/Recycling | Entered Scraplab 15770 | -7/Recycling | Discovered new exit (range 3) 15788 | -7/Recycling | Entered Scraptown 16317 | -7/Scraptown | Delivered V3-11A's Pendant to T0-NE2 in exchange for information 16580 | -7/Scraptown | Heard Great Nut preacher, LISTEN AND RECITE! 16666 | -7/Scraptown | Scanned Subdweller tech in exchange for log data 16672 | -7/Scraptown | Learned Research stockpile data 16678 | -7/Scraptown | Learned Factory terminal intel 16680 | -7/Scraptown | Learned 12 Factory zone layouts 16717 | -7/Scraptown | Discovered new exit (range 3) 16976 | -7/Scraptown | Visited Cyclists 17079 | -7/Scraptown | Visited Comm Corps 17188 | -7/Scraptown | Visited The Evicted 17658 | -7/Scraptown | Visited Symbiants 17717 | -7/Scraptown | Visited Cave Peace 17846 | -7/Scraptown | Visited Red Mages 17957 | -7/Scraptown | Visited SPCMW 18027 | -7/Scraptown | Visited UFD Registry 18027 | -7/Scraptown | Registered with UFD as "Steamlauncher" 18113 | -7/Scraptown | Entered Cyclist Reading Room 18281 | -7/Scraptown | Visited Junk Cannon Lab 18295 | -7/Scraptown | Found Prototype Special Weapon 18295 | -7/Scraptown | Identified Junk Cannon 19412 | -7/Scraptown | Guru changed UFD alias to "Boltrunner" 19710 | -7/Scraptown | Visited Abandonware Association 19742 | -7/Scraptown | Learned abandonware demo "SHUTEYE.EXE" 19742 | -7/Scraptown | Learned abandonware demo "MELTYB.EXE" 19787 | -7/Scraptown | Visited Science Guys 19861 | -7/Scraptown | Visited A0-MCA Data Center 19874 | -7/Scraptown | Given a C- rating by A0-MCA 19880 | -7/Scraptown | Found A0-MCA's Component Scanner 20015 | -7/Scraptown | Delivered Scrap Shield to a Scientist 20253 | -7/Scraptown | Visited Derelict Rescue Squad 20275 | -7/Scraptown | Found DRS Beacon 20278 | -7/Scraptown | Found DRS Beacon 20311 | -7/Scraptown | Found DRS Beacon 20349 | -7/Scraptown | Visited Scrap Suit Storage 20523 | -7/Scraptown | Visited Research Penetration Think Tank 20587 | -7/Scraptown | Visited Curators Association 20679 | -7/Scraptown | Visited Scrapoid Pod Storage 20690 | -7/Scraptown | Found Scrapoid Pod 20730 | -7/Scraptown | Visited Sword Containment 21104 | -7/Scraptown | Discovered new exit (range 3) 21636 | -7/Scraptown | Found Scrap Suit 21643 | -7/Scraptown | Found Scrap Suit 21723 | -7/Scraptown | Entered Factory 21723 | -5/Factory | Evolved 10 slots: Power x1, Propulsion x2, Utility x7 21724 | -5/Factory | Identified exit to Upper Caves 21724 | -5/Factory | Identified exit to Extension 21725 | -5/Factory | Loaded intel: 28 terminal locations 22030 | -5/Factory | Build established: Hacker-Mutant 22047 | -5/Factory | Discovered exit to Upper Caves (range 3) 22298 | -5/Factory | Fabricated Adv. Signal Interpreter? 22666 | -5/Factory | Scrapoid Pod released 05F05-D (x5) 22679 | -5/Factory | Build established: Scavenger-Mutant 23029 | -5/Factory | Entered Extension 23029 | -5/Extension | Accompanied by 4 allies 23674 | -5/Extension | P-70 Sage assimilated allied 44-623(g) 23720 | -5/Extension | Rescued a captive Derelict 23831 | -5/Extension | Spotted B-75 Beast 23851 | -5/Extension | Spotted B-75 Beast 23887 | -5/Extension | Core integrity fell below 50% 23897 | -5/Extension | Core integrity fell below 20% 23901 | -5/Extension | Destroyed by Y-64 Sentinel with Wave Gun Last Messages --------------- 23886_ Adv. Shield Generator destroyed. 23886_ Neutrino Core destroyed. 23887_ Com. Wheel destroyed. 23887_ Penetrated by Slug. 23889_ Slug penetrates Wall. 23889_ Knocked back. 23889_ Imp. Heat Sink destroyed. 23889_ Penetrated by Slug. 23891_ Slug penetrates Wall. 23892_ Knocked back. 23892_ System Shield destroyed. 23892_ Slug penetrates B-75 Beast. 23893_ Y-64 Sentinel heat damages Imp. Treads, Imp. Treads, Imp. Medium Armor Plating. 23894_ Dirty Datajack destroyed. 23895_ Y-64 Sentinel heat short circuits Imp. Treads. 23895_ Penetrated by Slug. 23895_ Knocked back. 23897_ Y-64 Sentinel heat damages Adv. Heat Sink. 23897_ Penetrated by Slug. Map ----- +----------------------------------------------------+ | ####????????????# % #??????????????????????? | | ????????????????# ####### #??????????????????????? | | ????????????????# ###??## #??????????????????????? | | ????????????????# #?????# #??????????????????????? | | ????????????????# #?????# #??????????????????????? | | ????????????????# #?????# #??????????????????????? | | ????????????????# #?????# #??????????????????????? | | ???????????????##+##????# #??????????????????????? | | ???????????????# ^#????# #??????????????????????? | | ???????????????#! #????# #??????????????????????? | | ???????????????# #????# #??????????????????????? | | ???????????????# " #????# #??????????????????????? | | ???????????????# T #????# #??????????????????????? | | ???????????????# " #????# #??????????????????????? | | ???????????????# #????#*#?##???????????????????? | | ???????????????#####????#Y##;#####???????????????? | | ??????????????????????###%/%;BB# ### ?#??????????? | | ?????????????????????##""]!%]BBu "" ""#?????????? | | ????????????????????##;="[% " " #?????????? | | ???????????????????## ;%%!%| Y #?????????? | | ???????????????????# ;*!=![ #?????????? | | ?????????########;####; [ ###???????? | | ?????? %% ???????? | | ?????? | % ??????? | | ?????? BB ??????? | | ?????? %@ BB ??????? | | ??????? u w ??????? | | ???????############;### %% #?????????? | | ?????????????????# #?#; #?????????? | | ????????????????# #??## #?????????? | | ????????????????##????# #?????????? | | ??????????????????????# #?????????? | | ??????????????????????#;;### #"""#######?????????? | | ??????????????????????###???##???????????????????? | | ?????????????????????????????????????????????????? | | | | | | | | | | | | | | | | | | | | | | | | | | | | | | | +----------------------------------------------------+ Best States ------------- Heat Dissipation 54 Coolant Potential 80 Energy Generation 33 Energy Capacity 530 Matter Stores 300 Matter Capacity 300 Sight Range 16 Robot Scan Range 15 Terrain Scan Range 16 Terrain Scan Density 10 Armor Coverage 300 Resistance: EM 25 Evasion (%) 40 Recoil Reduction 2 Defensive Hacking 20 Item Schematics ----------------- Power Amplifier | -7/Recycling | Hacked Adv. Signal Interpreter | -7/Recycling | Hacked Chainsword | -7/Recycling | Hacked Robot Schematics ------------------ None Fabricated ------------ Adv. Signal Interpreter | x2 | -5/Factory Alien Tech Used ----------------- None Achievements -------------- Ambidextrous Challenges ------------ None Game ------ Seed DefenseLayeredWheel Manual? 0 Play Time 01:33:25 Cumulative 119.9 hours Start 2024.09.19 @ 14:01:42 End 2024.09.19 @ 15:49:49 Sessions 1 Manual Loads 0 Difficulty Rogue Special Mode None Game No. 170 Rogue 170 Adventurer 0 Explorer 0 Win Type - Total 1 Types 1/0/0/0/0/0/0/0/0 Lore% 38 Gallery% 58 Achievement% 47 Wizard Run 0 Options --------- Layout 0 ASCII 0 Keyboard 0 Movement Mouse Keybinds 1 Fullscreen 1 Font 18/TerminusBold Map View 76x50 Zoom Use 0% Tactical HUD 1 Map Filters NONE Filters NONE Steam 1 RUN: b6a84caa-dc0f-4300-aa56-22ace64a0e14